[Event "Budapest IM-B ONE WEEK Feb 2024"]
[Site "Budapest"]
[Date "2024.03.02"]
[Round "9.5"]
[White "Haszon, David"]
[Black "Polyik, Peter"]
[Result "1/2-1/2"]
[ECO "D02"]
[WhiteElo "2245"]
[BlackElo "2289"]
[Annotator "TA"]
[PlyCount "208"]
[EventDate "2024.02.25"]
[EventType "tourn"]
[EventCountry "HUN"]
[SourceTitle "playchess.com"]
[Source "ChessBase"]
[SourceQuality "1"]
[TimeControl "5400+30"]

{[%evp 9,208,6,9,4,8,-7,0,0,0,-16,4,0,0,0,-7,-8,0,0,40,6,25,-35,-33,-79,-4,-4,109,114,141,139,154,146,125,135,115,115,275,133,161,150,139,41,212,212,225,219,253,218,289,263,338,314,357,286,392,327,311,260,279,263,254,236,227,215,197,165,134,145,5118,5118,1380,156,164,8,211,209,697,677,849,849,813,786,787,815,698,650,508,501,501,0,501,74,71,89,79,93,132,131,127,116,877,775,707,692,29941,780,725,455,427,410,462,451,444,0,411,363,426,356,349,349,341,132,132,132,132,132,341,341,29963,29964,29959,29949,11683,334,327,327,5106,312,287,214,272,125,239,110,239,232,231,221,214,177,166,144,144,144,144,0,95,0,0,0,163,163,155,0,0,0,0,0,0,0,0,0,0,0,0,0,0,0,0,0,0,0,0,0,0,0,0,0,0,0,0,0,0,0,0,0,0,0,0,0,0]} 1. d4 {[%emt 0:00:10]} d5 {[%emt 0:00:06]} 2. Nf3 {[%emt 0:00:10]} Nf6 {[%emt 0:00:07]} 3. Bf4 {[%emt 0:00:08]} e6 {[%emt 0:00:36]} 4. e3 {[%emt 0:00:10]} Bd6 {[%emt 0:00:16]} 5. Nbd2 {[%emt 0:00:12]} O-O {[%emt 0:01:01]} 6. c3 {[%emt 0:00:26]} c5 {[%emt 0:00:26]} 7. Bg3 {[%emt 0:01:01]} Qc7 {[%emt 0:00:18]} 8. dxc5 {[%emt 0:01:04]} Qxc5 {[%emt 0:00:08]} 9. c4 {[%emt 0:01:24]} dxc4 {[%emt 0:12:15]} 10. Bxc4 {[%emt 0:00:47]} Bxg3 {[%emt 0:00:48]} 11. hxg3 {[%emt 0:00:15]} Nc6 {[%emt 0:00:43]} 12. Rc1 {[%emt 0:02:34][%cal Oc4e6]} Qe7 {[%emt 0:00:25]} 13. Qc2 {[%emt 0:02:46][%cal Og3g4]} e5 {[%emt 0:01:19]} 14. Bb5 {[%emt 0:22:49]} Bd7 {[%emt 0:00:32]} 15. Bxc6 {[%emt 0:05:45]} (15. Ne4 $11 Nxe4 16. Qxe4) 15... Bxc6 $15 {[%emt 0:00:13]} 16. g4 {[%emt 0:01:30]} Rac8 {[%emt 0:02:32]} (16... Nxg4 17. Qxh7#) (16... e4 $1 $17 {[%cal Re4f3]} 17. g5 (17. Nd4 Rfc8 $17) 17... Ng4) 17. g5 $40 {[%emt 0:09:34][%mdl 128] Weiss hat was vor.} Bd7 {[%emt 0:00:41]} (17... Bb5 $11 18. Qxc8 (18. gxf6 $2 Rxc2 19. Rxc2 Qxf6 $19) 18... Rxc8 19. Rxc8+ Ne8) 18. Nc4 $1 $16 {[%emt 0:05:09]} Rxc4 {[%emt 0:20:53]} 19. Qxc4 {[%emt 0:00:56]} Rc8 {[%emt 0:00:08]} 20. Qxc8+ {[%emt 0:00:09]} (20. gxf6 $2 Rxc4 (20... gxf6 $2 21. Qxc8+ Bxc8 22. Rxc8+ $18) 21. Rxc4 Qxf6 $17 (21... gxf6 22. O-O $17)) 20... Bxc8 {[%emt 0:00:05]} 21. Rxc8+ {[%emt 0:01:08]} Ne8 {[%emt 0:00:05]} 22. O-O {[%emt 0:01:19]} h6 $2 {[%emt 0:02:53]} (22... e4 $16 23. Rd1 exf3) 23. gxh6 {[%emt 0:02:33]} (23. Rd1 $1 $18 Kh7 24. Rcd8) 23... gxh6 {[%emt 0:00:06]} 24. Rd1 {[%emt 0:01:23]} Kg7 {[%emt 0:02:37]} 25. Rd5 {[%emt 0:06:53]} (25. Rdc1 $16) 25... Nf6 $2 {[%emt 0:04:09]} ({Vorzuziehen ist} 25... Qe6 $14 26. Rdc5 (26. Rxe5 $2 Qxc8 27. Nd4 Nf6 $19) 26... Nf6) 26. Rxe5 $18 {[%emt 0:02:49]} Qd6 {[%emt 0:00:11]} 27. Rc1 {[%emt 0:00:26]} b6 {[%emt 0:00:12]} 28. Rf5 {[%emt 0:02:48]} Ng4 {[%emt 0:04:01]} 29. Rf4 {[%emt 0:02:52]} h5 {[%emt 0:00:05]} 30. Nd4 {[%emt 0:01:42]} Qe5 {[%emt 0:00:14]} 31. Rc3 {[%emt 0:04:37]} Kg6 {[%emt 0:04:09]} 32. Nf3 {[%emt 0:03:33]} Qd5 {[%emt 0:00:12] ( -> ...Qd1+)} 33. Nh4+ {[%emt 0:04:16]} Kh7 {[%emt 0:02:17][%cal Rd5d1]} 34. g3 $1 {[%emt 0:00:59]} Qxa2 {[%emt 0:02:04]} 35. Rc7 {[%emt 0:04:03] Aktives Gegenspiel!} Nh6 {[%emt 0:00:09]} 36. Kg2 {[%emt 0:00:44]} a5 {[%emt 0:06:27]} 37. e4 {[%emt 0:02:02]} Qxb2 {[%emt 0:01:54]} 38. Nf5 {[%emt 0:01:35]} a4 $2 {[%emt 0:00:18][%mdl 8192]} (38... Nxf5 $16 39. Rxf5 Kg6 40. Rcxf7 (40. Rfxf7 h4 $18) 40... Qd4) 39. Nxh6 {[%emt 0:00:25]} Kxh6 {[%emt 0:00:43]} 40. Rcxf7 $2 {[%emt 0:01:51][%mdl 4096] Endspiel. KQ-KRR} (40. Rfxf7 $18 {Weiss will mit Rc6+ Matt setzen.} Kg6 41. Rfe7) 40... Kg6 $16 {[%emt 0:00:07]} 41. Rb7 $2 {[%emt 0:02:32]} (41. Re7 $1 $18 {e5 ist eine echte Drohung.} h4 42. e5 (42. Rxh4 a3 $18) (42. gxh4 Qe2 $18) 42... hxg3 43. Rf6+ Kg5 44. Rg7+ (44. Kxg3 $2 Qa3+ 45. Kg2 Qxe7 $19) 44... Kh5 45. Rf5+ (45. Rxg3 Qxe5 46. Rh3+ Kg5 $18) 45... Kh6 46. Rxg3) 41... Qd4 {[%emt 0:02:41]} (41... b5 $11) 42. Kh2 $18 {[%emt 0:01:23][%cal Oe4e5] Schwarz muss nun e5! beachten.} h4 $2 {[%emt 0:01:07]} (42... a3) 43. Rg4+ {[%emt 0:00:40]} (43. gxh4 a3 44. Ra7 Qb2 $11) 43... Kh6 {[%emt 0:01:35]} 44. Rxh4+ {[%emt 0:00:16]} (44. gxh4 Qxf2+ 45. Rg2 Qd4 $15 (45... Qxh4+ 46. Kg1 $11)) 44... Kg6 {[%emt 0:00:04]} 45. Rf4 {[%emt 0:01:05][%cal Oe4e5] e5! wäre nun fies.} a3 {[%emt 0:02:22] [#]} 46. e5 $1 {[%emt 0:00:13]} Qxe5 {[%emt 0:00:05]} 47. Rxb6+ {[%emt 0:00:09]} Kg7 {[%emt 0:00:07]} 48. Rb7+ {[%emt 0:00:43]} Kg6 {[%emt 0:00:16]} 49. Rb6+ {[%emt 0:01:16]} Kg7 {[%emt 0:00:05] Und ...a2 würde nun gewinnen.} 50. Ra6 $2 {[%emt 0:00:55]} (50. Rg4+ $18 {und der Rest ist Schweigen.} Kf8 51. Ra6) 50... Qh5+ $16 {[%emt 0:06:21]} 51. Kg2 {[%emt 0:00:02]} (51. Kg1 $5 Qd1+ $8 52. Kh2 Qh5+ 53. Kg2 Qd5+ 54. Kh3 $11) 51... Qd5+ {[%emt 0:00:12]} 52. f3 $1 {[%emt 0:01:18]} a2 {[%emt 0:01:24]} 53. Rfa4 $1 {[%emt 0:00:19]} Qd2+ {[%emt 0:00:36]} 54. Kh3 {[%emt 0:00:08]} Qd3 $2 {[%emt 0:01:34][%mdl 8192]} (54... Qd5 $16) 55. Ra7+ {[%emt 0:00:23]} (55. Rxa2 Qxf3 56. Ra7+ Kg6 $11) 55... Kg6 {[%emt 0:00:50]} 56. R4a6+ {[%emt 0:00:52]} (56. Rxa2 Qxf3 57. R2a6+ Kg5 58. Ra5+ Kf6 59. R7a6+ Kf7 $11) 56... Kg5 {[%emt 0:01:53]} 57. f4+ {[%emt 0:00:48]} (57. Rxa2 Qxf3 58. R7a5+ Kf6 $18) (57. Rg7+ $142 Kf5 58. Rf7+ (58. Rxa2 Qf1+ 59. Kh2 Ke6 $18) 58... Ke5 59. Rxa2 Qf1+ 60. Kg4 Qh1 61. f4+ Kd4 62. Rd7+ Kc5 63. Ra5+ Kc6 64. Rad5) 57... Kf5 $18 {[%emt 0:00:05]} 58. Rxa2 {[%emt 0:00:35]} Qf1+ {[%emt 0:00:14]} 59. Kh2 {[%emt 0:00:05]} Kg4 {[%emt 0:00:29]} 60. Rg7+ {[%emt 0:00:18]} Kf3 {[%emt 0:00:11]} 61. Rga7 {[%emt 0:01:16]} Kg4 $1 {[%emt 0:01:38]} 62. Rg2 {[%emt 0:00:02]} Qb1 {[%emt 0:01:59]} 63. f5 {[%emt 0:01:01]} Qxf5 {[%emt 0:01:24]} 64. Ra4+ {[%emt 0:00:18]} Kg5 {[%emt 0:00:11]} 65. Rf4 $2 {[%emt 0:00:05]} (65. Re2 $1 $18 Qh7+ 66. Rh4) 65... Qh7+ {[%emt 0:00:10]} 66. Rh4 {[%emt 0:00:02]} Qd3 {[%emt 0:00:38]} 67. Rf2 {[%emt 0:00:08]} Qb3 $2 {[%emt 0:02:06]} (67... Qe3 $16 {war angesagt.}) 68. Re4 {[%emt 0:00:41]} Qb1 $2 {[%emt 0:01:23]} (68... Qb8 $18 69. Ra2 Qb7) 69. Rfe2 {[%emt 0:00:04]} Qf1 {[%emt 0:01:50]} 70. Re6 {[%emt 0:00:21]} Qb1 {[%emt 0:00:23]} 71. Kg2 $2 {[%emt 0:01:14]} (71. R2e5+ Kg4 72. Re4+ Kg5 73. R6e5+ Kf6 74. Kh3) 71... Qb7+ {[%emt 0:00:43]} 72. R6e4 {[%emt 0:00:36]} Qc6 $2 {[%emt 0:00:59]} (72... Kg6 73. Kh2 Qd5) 73. Kh2 $2 {[%emt 0:00:53]} (73. Kh3 {Und jetzt Re5+ wäre schön.} Qc8+ 74. Re6 Qh8+ 75. Kg2) 73... Qh6+ {[%emt 0:00:58]} 74. Rh4 {[%emt 0:00:10]} Qd6 {[%emt 0:00:09]} 75. Rc2 {[%emt 0:00:28]} (75. Rh8 $18 {und Weiss behält klar die Oberhand.}) 75... Qd1 {[%emt 0:00:58]} (75... Qe5 $16 76. Rd2 Kf6) 76. Rhc4 {[%emt 0:00:16]} (76. Rc5+ $1 $18 {ist der präzise Gewinnweg.} Kg6 77. Rc6+ Kf7 78. Rf4+ Kg7 79. Re4 Qh5+ 80. Kg2) 76... Qd3 {[%emt 0:00:17]} (76... Qh5+ $16 {war einen Versuch wert.} 77. Kg2 Qd1) 77. Rc5+ {[%emt 0:00:37]} Kg6 {[%emt 0:00:05]} 78. Rb2 $1 {[%emt 0:00:40]} Qd6 {[%emt 0:00:56] [#] Pariert Rb6.} 79. Rcb5 $1 {[%emt 0:00:17]} Qd1 {[%emt 0:00:12]} 80. Rb6+ {[%emt 0:00:09]} Kg7 {[%emt 0:01:19]} 81. Rb7+ {[%emt 0:00:12]} Kg6 {[%emt 0:00:16]} 82. R7b6+ {[%emt 0:00:33]} (82. R2b6+ $142 Kf5 83. Rf7+ Ke5 84. Rf2) 82... Kg7 $16 {[%emt 0:00:06] [#]} 83. g4 {[%emt 0:01:22]} Qf3 $11 {[%emt 0:01:24]} ({Schlechter ist} 83... Qxg4 84. Rg2) 84. Rb7+ {[%emt 0:00:34]} Kf6 $2 {[%emt 0:00:39]} (84... Kf8 $11) 85. R2b6+ $18 {[%emt 0:00:41]} Ke5 {[%emt 0:00:08]} 86. Rb5+ $2 {[%emt 0:00:42]} ({Weiss braucht} 86. Re7+ $16 Kd5 87. Rg6) 86... Ke6 $11 {[%emt 0:00:16] Die Stellung ist ausgeglichen.} 87. R7b6+ {[%emt 0:00:34]} Ke7 {[%emt 0:00:03]} 88. Rb7+ {[%emt 0:00:32]} Ke6 {[%emt 0:00:04]} 89. g5 {[%emt 0:00:05]} Qf2+ {[%emt 0:00:50]} 90. Kh3 {[%emt 0:00:02]} Qf3+ {[%emt 0:00:10]} 91. Kh4 {[%emt 0:00:07] Zielt auf R5b6+ ab.} Qh1+ {[%emt 0:00:34]} 92. Kg4 {[%emt 0:00:05] Droht R5b6+ und aus.} Qd1+ {[%emt 0:00:10]} 93. Kf4 {[%emt 0:00:06]} Qd4+ {[%emt 0:00:15]} 94. Kg3 $1 {[%emt 0:00:39]} Qe3+ {[%emt 0:02:00]} 95. Kh4 {[%emt 0:00:08]} Qd4+ {[%emt 0:00:04]} 96. Kh5 {[%emt 0:00:17]} Qh8+ $1 {[%emt 0:00:04]} 97. Kg6 {[%emt 0:00:17] jetzt Rb8 und aus.} Qg8+ {[%emt 0:00:07]} 98. Kh6 {[%emt 0:00:10] Weiss droht Rb8 und Matt.} Qh8+ {[%emt 0:00:05]} 99. Kg6 $1 {[%emt 0:01:28] Droht Matt per Rb8.} Qg8+ {[%emt 0:00:04]} 100. Kh5 {[%emt 0:00:06]} (100. Kh6 $5 Qh8+ $8 101. Kg6 $11) 100... Qh8+ {[%emt 0:00:04]} 101. Kg4 {[%emt 0:00:53]} (101. Kg6 $5 Qg8+ $8 $11) 101... Qd4+ {[%emt 0:00:05]} 102. Kf3 {[%emt 0:00:06]} Qd3+ {[%emt 0:00:05]} 103. Kf2 {[%emt 0:00:06]} Qd2+ {[%emt 0:00:04]} 104. Kf3 {[%emt 0:00:06]} Qd3+ {[%emt 0:00:04] Gewichteter Fehlerwert: Weiß=0.61/Schwarz=0.45.  Verlustzug:     	---       	Schwarz=6     Gewinn verpasst:   	Weiß=2     	---        Fehler:       	Weiß=10    	Schwarz=8     Ungenau:       	Weiß=1     	Schwarz=4     OK:         	Weiß=21    	Schwarz=19    Bester:       	Weiß=9     	Schwarz=23    Stark:        	Weiß=7     	Schwarz=2} 1/2-1/2